fUSD/lending_fUSD_20260129
["ID","MTS","AMOUNT","RATE_DAILY","PERIOD"]
[403960050,1769694638762,-500.0,0.00015261,2]
[403960052,1769694638771,-500.0,0.00015261,2]
[403960054,1769694638781,-500.0,0.00015261,2]
[403960056,1769694638790,-500.0,0.00015261,2]
[403960058,1769694638799,-500.0,0.00015261,2]
[403960060,1769694638809,-500.0,0.00015261,2]
[403960062,1769694638818,-500.0,0.00015261,2]
[403960064,1769694638828,-500.0,0.00015261,2]
[403960066,1769694638837,-500.0,0.00015261,2]
[403960068,1769694638846,-1736.78,0.00015261,2]
[403960070,1769694638855,-500.0,0.00015261,2]
[403960072,1769694638865,-166.66,0.00015367,2]
[403960074,1769694638875,-500.0,0.00015417,2]
[403960076,1769694638884,-531.74,0.00015417,2]
[403960078,1769694638894,-9999.99,0.00015417,2]
[403960080,1769694638903,-500.0,0.00015417,12]
[403960082,1769694638913,-1000.0,0.00015469,2]
[403960084,1769694638923,-151.0,0.00015527,2]
[403960086,1769694638932,-151.0,0.00015527,2]
[403960088,1769694638941,-151.0,0.00015529,2]
[403960090,1769694638951,-151.0,0.00015529,2]
[403960092,1769694638960,-151.0,0.00015529,2]
[403960094,1769694638969,-151.0,0.00015529,2]
[403960096,1769694638979,-151.0,0.0001553,2]
[403960098,1769694638989,-151.0,0.0001553,2]
[403960100,1769694638999,-1736.78,0.00015535,2]
[403960102,1769694639009,-500.0,0.00015535,2]
[403960104,1769694639018,-2000.0,0.000156,5]
[403960106,1769694639028,-166.66,0.00015691,2]
[403960108,1769694639038,-4100.0,0.000157,5]
[403960110,1769694639048,-162.18,0.00015728,2]
[403960112,1769694639058,-496.8,0.00015776,2]
[403960114,1769694639069,-500.0,0.000158,2]
[403960116,1769694639079,-6100.0,0.000158,5]
[403960118,1769694639090,-1736.78,0.00015809,2]
[403960120,1769694639100,-408.26320399,0.00015809,2]
[403960122,1769694639111,-200.0,0.00015809,2]
[403960124,1769694639121,-243.4,0.00015851,2]
[403960126,1769694639130,-183.0408,0.00015873,2]
[403960128,1769694639140,-8200.0,0.000159,5]
[403960130,1769694639149,-500.0,0.00015945,2]
[403960132,1769694639159,-2500.0,0.00015949,2]
[403960134,1769694639168,-21527.04413435,0.00015949,2]
[403960136,1769694639177,-38986.01907015,0.00015949,2]
[403960138,1769694639187,-455.09872462,0.00015949,2]
[403960140,1769694639197,-500.0,0.00015958,2]
[403960142,1769694639207,-500.0,0.00015973,2]
[403960144,1769694639217,-500.0,0.00015973,2]
[403960146,1769694639226,-500.0,0.00015973,2]
[403960148,1769694639235,-500.0,0.00015973,2]
[403960150,1769694639244,-500.0,0.00015973,2]
[403960152,1769694639253,-500.0,0.00015973,2]
[403960154,1769694639262,-541.13801324,0.00015973,2]
[403960157,1769694639272,-203.77764767,0.00015973,2]
[403960158,1769694639281,-503.09870012,0.00015973,2]
[403960161,1769694639290,-500.0,0.00015973,2]
[403960162,1769694639300,-500.0,0.00015973,2]
[403960164,1769694639309,-401.40440984,0.00015973,2]
[403960167,1769694639318,-500.0,0.00015973,2]
[403960169,1769694639327,-500.0,0.00015973,2]
[403960171,1769694639337,-500.0,0.00015973,2]
[403960173,1769694639346,-500.0,0.00015973,2]
[403960175,1769694639355,-505.52548547,0.00015973,2]
[403960177,1769694639364,-500.0,0.00015973,2]
[403960179,1769694639372,-500.76243557,0.00015973,2]
[403960181,1769694639382,-500.0,0.00015973,2]
[403960183,1769694639390,-459.4735822,0.00015973,2]
[403960184,1769694639399,-500.0,0.00015973,2]
[403960187,1769694639409,-500.0,0.00015973,2]
[403960188,1769694639418,-500.0,0.00015973,2]
[403960191,1769694639427,-500.0,0.00015973,2]
[403960193,1769694639436,-500.0,0.00015973,2]
[403960195,1769694639446,-205.80445456,0.00015973,2]
[403960197,1769694639455,-500.0,0.00015973,2]
[403960198,1769694639465,-500.0,0.00015973,2]
[403960200,1769694639474,-501.58952818,0.00015973,2]
[403960202,1769694639483,-2219.796418,0.00016014,3]
[403960205,1769694639492,-166.66,0.00016014,2]
[403960206,1769694639501,-250.0,0.00016038,2]
[403960209,1769694639510,-966.96931024,0.00016038,2]
[403960211,1769694639520,-600.0,0.00016038,2]
[403960213,1769694639529,-195.0,0.00016038,2]
[403960215,1769694639538,-300.0,0.00016038,2]
[403960217,1769694639548,-500.0,0.00016038,2]
[403960219,1769694639557,-193.0,0.00016038,2]
[403960221,1769694639566,-250.0,0.00016038,2]
[403960223,1769694639575,-5000.0,0.00016038,2]
[403960224,1769694639585,-755.5748152,0.00016039,2]
[403960227,1769694639594,-151.0,0.00016046,2]
[403960228,1769694639604,-500.0,0.00016048,2]
[403960230,1769694639613,-500.0,0.00016048,2]
[403960232,1769694639627,-500.0,0.00016048,2]
[403960234,1769694639636,-500.0,0.00016048,2]
[403960237,1769694639646,-500.0,0.00016048,2]
[403960239,1769694639655,-500.0,0.00016048,2]
[403960240,1769694639664,-508.85443347,0.00016048,2]
[403960242,1769694639674,-500.0,0.00016048,2]
[403960244,1769694639683,-500.0,0.00016048,2]
[403960246,1769694639692,-500.0,0.00016048,2]
[403960249,1769694639703,-500.0,0.00016048,2]
[403960250,1769694639712,-500.0,0.00016048,2]
[403960252,1769694639721,-500.0,0.00016048,2]
[403960254,1769694639731,-357.52185889,0.00016048,2]
[403960257,1769694639740,-150.0,0.00016048,2]
[403960258,1769694639749,-150.0,0.00016048,2]
[403960260,1769694639759,-2400000.0,0.00016049,2]
[403960263,1769694639768,-1502.0,0.00016049,2]
[403960264,1769694639778,-1502.0,0.00016049,2]
[403960267,1769694639787,-1502.0,0.00016049,2]
[403960268,1769694639796,-1502.0,0.00016049,2]
[403960271,1769694639806,-1502.0,0.00016049,2]
[403960273,1769694639815,-1502.0,0.00016049,2]
[403960275,1769694639824,-1502.0,0.00016049,2]
[403960277,1769694639835,-1502.0,0.00016049,2]
[403960279,1769694639846,-1502.0,0.00016049,2]
[403960281,1769694639855,-1502.0,0.00016049,2]
[403960283,1769694639864,-1502.0,0.00016049,2]
[403960285,1769694639873,-1502.0,0.00016049,2]
[403960287,1769694639882,-1502.0,0.00016049,2]
[403960289,1769694639891,-1502.0,0.00016049,2]
[403960291,1769694639901,-1502.0,0.00016049,2]
[403960293,1769694639910,-1502.0,0.00016049,2]
[403960295,1769694639919,-1502.0,0.00016049,2]
[403960297,1769694639928,-1502.0,0.00016049,2]
[403960299,1769694639937,-1502.0,0.00016049,2]
[403960301,1769694639946,-1502.0,0.00016049,2]
[403960303,1769694639955,-1502.0,0.00016049,2]
[403960305,1769694639966,-1502.0,0.00016049,2]
[403960307,1769694639975,-1502.0,0.00016049,2]
[403960309,1769694639985,-1502.0,0.00016049,2]
[403960311,1769694639996,-1502.0,0.00016049,2]
[403960313,1769694640006,-1502.0,0.00016049,2]
[403960315,1769694640015,-1502.0,0.00016049,2]
[403960317,1769694640024,-1502.0,0.00016049,2]
[403960319,1769694640033,-1502.0,0.00016049,2]
[403960321,1769694640043,-1502.0,0.00016049,2]
[403960323,1769694640052,-1502.0,0.00016049,2]
[403960325,1769694640061,-1502.0,0.00016049,2]
[403960327,1769694640070,-1502.0,0.00016049,2]
[403960329,1769694640080,-1502.0,0.00016049,2]
[403960331,1769694640089,-1502.0,0.00016049,2]
[403960333,1769694640098,-1502.0,0.00016049,2]
[403960335,1769694640107,-1502.0,0.00016049,2]
[403960337,1769694640117,-1502.0,0.00016049,2]
[403960339,1769694640126,-1502.0,0.00016049,2]
[403960341,1769694640135,-1502.0,0.00016049,2]
[403960343,1769694640144,-1502.0,0.00016049,2]
[403960345,1769694640153,-1502.0,0.00016049,2]
[403960347,1769694640162,-1502.0,0.00016049,2]
[403960349,1769694640171,-1502.0,0.00016049,2]
[403960351,1769694640181,-1502.0,0.00016049,2]
[403960353,1769694640190,-1502.0,0.00016049,2]
[403960355,1769694640199,-1502.0,0.00016049,2]
[403960357,1769694640209,-1502.0,0.00016049,2]
[403960359,1769694640218,-1502.0,0.00016049,2]
[403960361,1769694640228,-1502.0,0.00016049,2]
[403960363,1769694640237,-1502.0,0.00016049,2]
[403960365,1769694640246,-1502.0,0.00016049,2]
[403960367,1769694640255,-1502.0,0.00016049,2]
[403960369,1769694640264,-1502.0,0.00016049,2]
[403960371,1769694640274,-1502.0,0.00016049,2]
[403960373,1769694640283,-1502.0,0.00016049,2]
[403960375,1769694640293,-1502.0,0.00016049,2]
[403960377,1769694640302,-1502.0,0.00016049,2]
[403960379,1769694640311,-1502.0,0.00016049,2]
[403960381,1769694640320,-1502.0,0.00016049,2]
[403960383,1769694640330,-1502.0,0.00016049,2]
[403960385,1769694640338,-1502.0,0.00016049,2]
[403960387,1769694640347,-1502.0,0.00016049,2]
[403960389,1769694640357,-1502.0,0.00016049,2]
[403960392,1769694640366,-1502.0,0.00016049,2]
[403960393,1769694640376,-1502.0,0.00016049,2]
[403960396,1769694640385,-1502.0,0.00016049,2]
[403960398,1769694640394,-1502.0,0.00016049,2]
[403960400,1769694640403,-1502.0,0.00016049,2]
[403960402,1769694640412,-1502.0,0.00016049,2]
[403960403,1769694640421,-1502.0,0.00016049,2]
[403960406,1769694640430,-1736.78,0.00016083,2]
[403960408,1769694640440,-9999.99,0.00016116,2]
[403960410,1769694640450,-21527.04413435,0.00016166,2]
[403960412,1769694640459,-38986.01907013,0.00016166,2]
[403960414,1769694640468,-398.32,0.00016253,2]
[403960416,1769694640477,-166.66,0.00016338,2]
[403960418,1769694640486,-500.0,0.00016339,2]
[403960420,1769694640496,-531.74,0.00016339,2]
[403960422,1769694640505,-500.0,0.00016339,13]
[403960424,1769694640514,-1736.78,0.00016357,2]
[403960426,1769694640524,-21527.04413435,0.00016383,2]
[403960428,1769694640533,-38986.01907013,0.00016383,2]
[403960430,1769694640542,-510.0,0.00016389,2]
[403960432,1769694640551,-800.0,0.00016438,2]
[403960434,1769694640562,-150.0,0.00016458,2]
[403960436,1769694640571,-1000.0,0.00016521,2]
[403960438,1769694640580,-1006.79391477,0.00016521,2]
[403960440,1769694640589,-500.0,0.00016521,2]
[403960442,1769694640598,-500.0,0.00016521,2]
[403960444,1769694640608,-1000.0,0.00016521,2]
[403960446,1769694640617,-1000.0,0.00016521,2]
[403960448,1769694640631,-156.35277516,0.00016521,2]
[403960450,1769694640640,-500.0,0.00016521,2]
[403960452,1769694640650,-490.14600045,0.00016521,2]
[403960454,1769694640659,-1000.0,0.00016521,2]
[403960455,1769694640668,-1000.0,0.00016521,2]
[403960456,1769694640677,-1001.77083236,0.00016521,2]
[403960457,1769694640686,-500.0,0.00016521,2]
[403960458,1769694640696,-850.06999106,0.00016521,2]
[403960459,1769694640705,-1000.0,0.00016521,2]
[403960460,1769694640714,-1000.0,0.00016521,2]
[403960461,1769694640723,-500.0,0.00016521,2]
[403960462,1769694640732,-500.0,0.00016521,2]
[403960463,1769694640741,-1000.0,0.00016521,2]
[403960464,1769694640750,-291.41973168,0.00016522,2]
[403960465,1769694640759,-195.0,0.00016522,2]
[403960466,1769694640768,-2500.0,0.00016522,2]
[403960467,1769694640777,-300.0,0.00016522,2]
[403960468,1769694640786,-500.0,0.00016548,2]
[403960470,1769694640796,-496.8,0.00016565,2]
[403960472,1769694640805,-21527.04413435,0.00016599,2]
[403960474,1769694640814,-38986.01907013,0.00016599,2]
[403960476,1769694640823,-1736.78,0.00016631,2]
[403960478,1769694640832,-300.0,0.00016639,2]
[403960480,1769694640842,-370.73177233,0.00016639,2]
[403960482,1769694640850,-201.01666488,0.00016639,2]
[403960484,1769694640860,-195.0,0.00016639,2]
[403960487,1769694640869,-300.0,0.00016639,2]
[403960489,1769694640878,-193.62028716,0.00016639,2]
[403960491,1769694640888,-600.0,0.00016639,2]
[403960493,1769694640897,-630.22,0.0001666,2]
[403960495,1769694640906,-166.66,0.00016661,2]
[403960497,1769694640915,-500.0,0.00016681,2]
[403960499,1769694640924,-500.0,0.00016681,3]
[403960501,1769694640933,-500.0,0.00016681,4]
[403960503,1769694640942,-500.0,0.00016681,5]
[403960505,1769694640951,-500.0,0.00016681,6]
[403960507,1769694640959,-500.0,0.00016681,7]
[403960509,1769694640969,-500.0,0.00016681,9]
[403960511,1769694640978,-317.9756602,0.00016681,10]
[403960513,1769694640987,-420.0,0.00016696,2]
[403960515,1769694640995,-200.0,0.00016712,3]
[403960517,1769694641004,-3322.76,0.00016761,2]
[403960519,1769694641013,-500.0,0.00016767,2]
[403960521,1769694641023,-1680.0,0.0001678,2]
[403960523,1769694641032,-21527.04413435,0.00016816,2]
[403960525,1769694641041,-38986.01907013,0.00016816,2]
[403960527,1769694641053,-287.25,0.00016849,3]
[403960529,1769694641063,-162.18,0.00016851,2]
[403960531,1769694641073,-1736.78,0.00016905,2]
[403960533,1769694641082,-455.0987246,0.00016925,2]
[403960535,1769694641091,-500.0,0.00016935,2]
[403960537,1769694641100,-175.257721,0.00016983,2]
[403960539,1769694641110,-166.66,0.00016985,2]
[403960541,1769694641119,-200.0,0.00016986,3]
[403960543,1769694641129,-500.0,0.00016999,2]
[403960545,1769694641138,-531.74,0.00016999,2]
[403960547,1769694641147,-500.0,0.00016999,14]
[403960549,1769694641156,-250.0,0.00017,2]
[403960551,1769694641165,-151.70764985,0.00017,2]
[403960553,1769694641173,-502.39531283,0.00017,2]
[403960555,1769694641183,-21527.04413435,0.00017033,2]
[403960557,1769694641192,-38986.01907013,0.00017033,2]
[403960559,1769694641201,-500.0,0.00017041,2]
[403960561,1769694641210,-150.0,0.00017041,2]
[403960563,1769694641220,-1500.0,0.00017068,2]
[403960565,1769694641229,-1002.95752889,0.00017068,2]
[403960567,1769694641239,-1500.0,0.00017068,2]
[403960569,1769694641248,-512.0030697,0.00017068,2]
[403960571,1769694641257,-500.0,0.00017096,2]
[403960573,1769694641266,-465.11215325,0.00017098,2]
[403960575,1769694641275,-288.68407899,0.00017098,2]
[403960577,1769694641284,-1153.39351811,0.00017098,2]
[403960579,1769694641293,-578.20924308,0.00017099,2]
[403960582,1769694641303,-322.6107,0.00017099,2]
[403960583,1769694641312,-180.85722533,0.00017099,2]
[403960585,1769694641321,-1000.0,0.00017099,2]
[403960588,1769694641330,-500.0,0.00017099,2]
[403960590,1769694641339,-1000.0,0.00017099,2]
[403960591,1769694641348,-500.0,0.00017099,2]
[403960594,1769694641358,-500.0,0.00017099,2]
[403960596,1769694641367,-1000.0,0.00017099,2]
[403960598,1769694641377,-500.0,0.00017099,2]
[403960600,1769694641386,-1000.0,0.00017099,2]
[403960602,1769694641395,-500.0,0.00017099,2]
[403960603,1769694641404,-1000.0,0.00017099,2]
[403960606,1769694641413,-500.0,0.00017099,2]
[403960608,1769694641423,-250.0,0.00017099,2]
[403960609,1769694641432,-1000.0,0.00017099,2]
[403960647,1769694641809,-500.0,0.00017099,2]
[403960651,1769694641845,-250.0,0.00017099,2]
[403960653,1769694641856,-1000.0,0.00017099,2]
[403960655,1769694641865,-500.0,0.00017099,2]
[403960657,1769694641874,-250.0,0.00017099,2]
[403960659,1769694641884,-1000.0,0.00017099,2]
[403960661,1769694641894,-500.0,0.00017099,2]
[403960663,1769694641903,-250.0,0.00017099,2]
[403960665,1769694641913,-1000.0,0.00017099,2]
[403960667,1769694641923,-250.0,0.00017099,2]
[403960669,1769694641932,-500.0,0.00017099,2]
[403960671,1769694641942,-1000.0,0.00017099,2]
[403960673,1769694641952,-500.0,0.00017099,2]
[403960676,1769694641962,-250.0,0.00017099,2]
[403960677,1769694641971,-1000.0,0.00017099,2]
[403960679,1769694641980,-500.0,0.00017099,2]
[403960682,1769694641990,-500.0,0.00017099,2]
[403960684,1769694641999,-500.0,0.00017099,2]
[403960686,1769694642008,-250.0,0.00017099,2]
[403960688,1769694642018,-250.0,0.00017099,2]
[403960690,1769694642028,-500.0,0.00017099,2]
[403960692,1769694642037,-250.0,0.00017099,2]
[403960694,1769694642046,-500.0,0.00017099,2]
[403960696,1769694642055,-250.0,0.00017099,2]
[403960698,1769694642065,-500.0,0.00017099,2]
[403960699,1769694642074,-174.61919141,0.00017099,2]
[403960702,1769694642083,-250.0,0.00017099,2]
[403960704,1769694642092,-500.0,0.00017099,2]
[403960706,1769694642101,-500.0,0.00017099,2]
[403960708,1769694642111,-500.0,0.00017099,2]
[403960710,1769694642120,-721.12765535,0.00017099,2]
[403960711,1769694642129,-202.66289745,0.00017099,2]
[403960713,1769694642138,-250.0,0.00017099,2]
[403960716,1769694642148,-250.0,0.00017099,2]
[403960718,1769694642157,-359.91781005,0.00017099,2]
[403960720,1769694642167,-250.0,0.00017099,2]
[403960722,1769694642176,-250.0,0.00017099,2]
[403960724,1769694642185,-854.2589148,0.00017099,2]
[403960725,1769694642194,-250.0,0.00017099,2]
[403960727,1769694642204,-250.0,0.00017099,2]
[403960729,1769694642214,-250.0,0.00017099,2]
[403960732,1769694642225,-250.0,0.00017099,2]
[403960734,1769694642234,-250.0,0.00017099,2]
[403960736,1769694642243,-250.0,0.00017099,2]
[403960738,1769694642252,-250.0,0.00017099,2]
[403960740,1769694642262,-250.0,0.00017099,2]
[403960742,1769694642271,-250.0,0.00017099,2]
[403960744,1769694642280,-250.0,0.00017099,2]
[403960746,1769694642289,-250.0,0.00017099,2]
[403960748,1769694642298,-250.0,0.00017099,2]
[403960750,1769694642307,-250.0,0.00017099,2]
[403960753,1769694642317,-250.0,0.00017099,2]
[403960755,1769694642326,-250.0,0.00017099,2]
[403960757,1769694642335,-209.40437684,0.00017099,2]
[403960759,1769694642344,-250.0,0.00017099,2]
[403960761,1769694642352,-250.0,0.00017099,2]
[403960763,1769694642361,-250.0,0.00017099,2]
[403960765,1769694642370,-250.0,0.00017099,2]
[403960767,1769694642379,-250.0,0.00017099,2]
[403960769,1769694642388,-250.0,0.00017099,2]
[403960771,1769694642397,-250.0,0.00017099,2]
[403960773,1769694642406,-250.0,0.00017099,2]
[403960775,1769694642415,-250.0,0.00017099,2]
[403960777,1769694642426,-250.0,0.00017099,2]
[403960779,1769694642435,-250.0,0.00017099,2]
[403960781,1769694642445,-250.0,0.00017099,2]
[403960783,1769694642455,-250.0,0.00017099,2]
[403960785,1769694642464,-250.0,0.00017099,2]
[403960787,1769694642473,-500.0,0.00017099,2]
[403960789,1769694642482,-500.0,0.00017099,2]
[403960791,1769694642491,-500.0,0.00017099,2]
[403960793,1769694642500,-500.0,0.00017099,2]
[403960795,1769694642509,-500.0,0.00017099,2]
[403960798,1769694642518,-500.0,0.00017099,2]
[403960800,1769694642528,-500.0,0.00017099,2]
[403960802,1769694642538,-500.0,0.00017099,2]
[403960804,1769694642548,-500.0,0.00017099,2]
[403960806,1769694642557,-500.0,0.00017099,2]
[403960808,1769694642566,-500.0,0.00017099,2]
[403960810,1769694642575,-500.0,0.00017099,2]
[403960812,1769694642585,-500.0,0.00017099,2]
[403960814,1769694642594,-500.0,0.00017099,2]
[403960816,1769694642603,-500.0,0.00017099,2]
[403960818,1769694642612,-500.0,0.00017099,2]
[403960820,1769694642625,-500.0,0.00017099,2]
[403960822,1769694642634,-500.0,0.00017099,2]
[403960824,1769694642645,-500.0,0.00017099,2]
[403960826,1769694642654,-500.0,0.00017099,2]
[403960828,1769694642665,-500.0,0.00017099,2]
[403960830,1769694642674,-500.0,0.00017099,2]
[403960832,1769694642683,-151.0,0.00017099,2]
[403960834,1769694642692,-209.40437684,0.00017099,2]
[403960836,1769694642702,-243.4,0.00017102,2]
[403960838,1769694642711,-250.0,0.00017123,3]
[403960840,1769694642720,-500.0,0.00017144,2]
[403960842,1769694642729,-500.0,0.00017144,2]
[403960844,1769694642739,-500.0,0.00017151,2]
[403960846,1769694642747,-217.15233878,0.00017154,2]
[403960848,1769694642757,-1736.78,0.00017179,2]
[403960850,1769694642766,-500.0,0.00017205,2]
[403960852,1769694642775,-225.18697532,0.00017209,2]
[403960854,1769694642784,-21527.04413435,0.0001725,2]
[403960856,1769694642793,-38986.01907013,0.0001725,2]
[403960859,1769694642802,-500.0,0.0001726,2]
[403960861,1769694642811,-233.51889341,0.00017264,2]
[403960862,1769694642820,-500.0,0.00017315,2]
[403960865,1769694642830,-242.15909246,0.00017319,2]
[403960867,1769694642839,-280.46,0.00017343,2]
[403960869,1769694642848,-496.8,0.00017354,2]
[403960871,1769694642857,-238.39414965,0.00017366,2]
[403960873,1769694642868,-629.12593268,0.00017366,2]
[403960874,1769694642877,-460.01543511,0.0001737,2]
[403960877,1769694642888,-251.11897888,0.00017374,2]
[403960879,1769694642898,-250.28,0.00017383,2]
[403960881,1769694642907,-275.92,0.000174,2]
[403960883,1769694642916,-152.3,0.000174,2]
[403960885,1769694642925,-152.3,0.000174,2]
[403960887,1769694642934,-152.3,0.000174,2]
[403960889,1769694642943,-152.3,0.000174,2]
[403960891,1769694642952,-152.3,0.000174,2]
[403960893,1769694642962,-152.3,0.000174,2]
[403960895,1769694642971,-152.3,0.000174,2]
[403960897,1769694642980,-152.3,0.000174,2]
[403960899,1769694642991,-152.3,0.000174,2]
[403960901,1769694643000,-152.3,0.000174,2]
[403960903,1769694643010,-152.3,0.000174,2]
[403960905,1769694643019,-152.3,0.000174,2]
[403960907,1769694643028,-152.3,0.000174,2]
[403960909,1769694643040,-10200.0,0.000174,6]
[403960911,1769694643050,-1000.0,0.00017402,2]
[403960913,1769694643059,-260.4103811,0.00017429,2]
[403960915,1769694643068,-500.0,0.00017452,2]
[403960917,1769694643077,-1736.78,0.00017453,2]
[403960920,1769694643098,-21527.04413435,0.00017466,2]
[403960922,1769694643108,-38986.01907013,0.00017466,2]
[403960924,1769694643117,-270.0455652,0.00017484,2]
[403960927,1769694643127,-2812.0,0.00017485,2]
[403960929,1769694643136,-500.0,0.00017499,2]
[403960931,1769694643147,-531.74,0.00017499,2]
[403960933,1769694643156,-476.94,0.00017499,15]
[403960935,1769694643167,-2000.0,0.000175,6]
[403960937,1769694643177,-2652.0,0.00017519,2]
[403960939,1769694643187,-243.4,0.00017523,2]
[403960941,1769694643196,-718.43917855,0.00017534,2]
[403960943,1769694643206,-280.03725112,0.00017539,2]
[403960945,1769694643221,-222.41839663,0.00017549,2]
[403960948,1769694643238,-2154.0883252,0.00017558,2]
[403960951,1769694643248,-2154.0883252,0.00017558,2]
[403960953,1769694643259,-2154.0883252,0.00017558,2]
[403960956,1769694643269,-2154.0883252,0.00017558,2]
[403960958,1769694643278,-2154.0883252,0.00017558,2]
[403960960,1769694643288,-2154.0883252,0.00017558,2]
[403960962,1769694643297,-2154.0883252,0.00017558,2]
[403960964,1769694643307,-2154.0883252,0.00017558,2]
[403960966,1769694643317,-2154.0883252,0.00017558,2]
[403960968,1769694643326,-2154.0883252,0.00017558,2]
[403960970,1769694643336,-2154.0883252,0.00017558,2]
[403960972,1769694643345,-2154.0883252,0.00017558,2]
[403960974,1769694643356,-2154.0883252,0.00017558,2]
[403960976,1769694643366,-2154.0883252,0.00017558,2]
[403960979,1769694643375,-2154.0883252,0.00017558,2]
[403960981,1769694643385,-2154.0883252,0.00017558,2]
[403960983,1769694643394,-2154.0883252,0.00017558,2]
[403960985,1769694643404,-2154.0883252,0.00017558,2]
[403960987,1769694643413,-2154.0883252,0.00017558,2]
[403960989,1769694643422,-2154.0883252,0.00017558,2]
[403960991,1769694643432,-2154.0883252,0.00017558,2]
[403960993,1769694643442,-2154.0883252,0.00017558,2]
[403960995,1769694643455,-2154.0883252,0.00017558,2]
[403960998,1769694643466,-2154.0883252,0.00017558,2]
[403961000,1769694643475,-2154.0883252,0.00017558,2]
[403961002,1769694643485,-2154.0883252,0.00017558,2]
[403961004,1769694643495,-2154.0883252,0.00017558,2]
[403961006,1769694643505,-2154.0883252,0.00017558,2]
[403961008,1769694643515,-2154.0883252,0.00017558,2]
[403961010,1769694643525,-2154.0883252,0.00017558,2]
[403961012,1769694643535,-2154.0883252,0.00017558,2]
[403961014,1769694643546,-2154.0883252,0.00017558,2]
[403961017,1769694643556,-2154.0883252,0.00017558,2]
[403961019,1769694643566,-2154.0883252,0.00017558,2]
[403961021,1769694643577,-2154.0883252,0.00017558,2]
[403961023,1769694643587,-2154.0883252,0.00017558,2]
[403961025,1769694643597,-2154.0883252,0.00017558,2]
[403961027,1769694643608,-2154.0883252,0.00017558,2]
[403961029,1769694643618,-2154.0883252,0.00017558,2]
[403961031,1769694643633,-2154.0883252,0.00017558,2]
[403961034,1769694643643,-2154.0883252,0.00017558,2]
[403961036,1769694643653,-2154.0883252,0.00017558,2]
[403961038,1769694643663,-2154.0883252,0.00017558,2]
[403961040,1769694643673,-2154.0883252,0.00017558,2]
[403961042,1769694643682,-2154.0883252,0.00017558,2]
[403961044,1769694643693,-2154.0883252,0.00017558,2]
[403961046,1769694643702,-2154.0883252,0.00017558,2]
[403961048,1769694643712,-2154.0883252,0.00017558,2]
[403961050,1769694643722,-2154.0883252,0.00017558,2]
[403961052,1769694643732,-2154.0883252,0.00017558,2]
[403961054,1769694643742,-2154.0883252,0.00017558,2]
[403961056,1769694643752,-2154.0883252,0.00017558,2]
[403961058,1769694643764,-2154.0883252,0.00017558,2]
[403961060,1769694643774,-2154.0883252,0.00017558,2]
[403961063,1769694643783,-2154.0883252,0.00017558,2]
[403961065,1769694643793,-2154.0883252,0.00017558,2]
[403961067,1769694643803,-1660.17763539,0.00017559,2]
[403961069,1769694643813,-9890.97262948,0.00017559,2]
[403961070,1769694643822,-500.0,0.00017581,2]
[403961071,1769694643836,-500.0,0.00017583,2]
[403961072,1769694643845,-531.74,0.00017583,2]
[403961073,1769694643855,-150.0,0.00017589,2]
[403961074,1769694643865,-150.0,0.00017589,2]
[403961075,1769694643875,-150.0,0.00017589,2]
[403961076,1769694643885,-547.0,0.00017589,2]
[403961077,1769694643895,-150.0,0.00017589,2]
[403961078,1769694643905,-500.0,0.00017589,2]
[403961079,1769694643914,-150.0,0.00017589,2]